[Event "2026 European Womens Championship"]
[Site "Batumi, GE"]
[Date "2026.05.29"]
[Round "5"]
[White "Purtseladze, Maka"]
[Black "Ivekovic, Tihana"]
[Result "1/2-1/2"]
[Board "95"]
[TimeControl "5400+30"]
[WhiteFideId "13602659"]
[BlackFideId "14517825"]
[WhiteElo "2237"]
[BlackElo "2119"]
[WhiteTitle "IM"]
[BlackTitle "WFM"]
[WhiteClock "0:02:44"]
[BlackClock "0:01:34"]
[Variant "Standard"]

1. d4 {[%clk 1:30:45]}  Nf6 {[%clk 1:30:54]} 2. Nf3 {[%clk 1:30:55]}  d5 {[%clk 1:31:17]} 3. c4 {[%clk 1:31:00]}  e6 {[%clk 1:31:41]}
4. Nc3 {[%clk 1:31:21]}  c5 {[%clk 1:32:00]} 5. cxd5 {[%clk 1:31:40]}  cxd4 {[%clk 1:32:24]} 6. Qxd4 {[%clk 1:31:43]}  exd5 {[%clk 1:32:36]}
7. Bg5 {[%clk 1:32:00]}  Be7 {[%clk 1:32:41]} 8. e3 {[%clk 1:32:23]}  O-O {[%clk 1:32:43]} 9. Be2 {[%clk 1:31:54]}  Nc6 {[%clk 1:31:52]}
10. Qd3 {[%clk 1:32:05]}  Qb6 {[%clk 1:26:59]} 11. Qb5 {[%clk 1:22:12]}  Qxb5 {[%clk 1:27:02]} 12. Bxb5 {[%clk 1:22:27]}  Be6 {[%clk 1:26:43]}
13. O-O {[%clk 1:21:24]}  h6 {[%clk 1:26:04]} 14. Bh4 {[%clk 1:20:19]}  g5 {[%clk 1:25:57]} 15. Bg3 {[%clk 1:20:41]}  Ne4 {[%clk 1:23:10]}
16. Nxe4 {[%clk 1:05:01]}  dxe4 {[%clk 1:23:34]} 17. Bxc6 {[%clk 1:05:25]}  bxc6 {[%clk 1:23:59]} 18. Nd4 {[%clk 1:05:49]}  Bd7 {[%clk 1:19:28]}
19. Rac1 {[%clk 0:54:08]}  c5 {[%clk 1:12:26]} 20. Nb3 {[%clk 0:54:00]}  Bb5 {[%clk 1:00:04]} 21. Rfe1 {[%clk 0:38:10]}  Rac8 {[%clk 0:57:45]}
22. Nd2 {[%clk 0:38:09]}  f5 {[%clk 0:56:15]} 23. Be5 {[%clk 0:36:56]}  Kf7 {[%clk 0:50:52]} 24. b3 {[%clk 0:18:23]}  Ke6 {[%clk 0:47:50]}
25. Bc3 {[%clk 0:18:30]}  Rfd8 {[%clk 0:45:21]} 26. Nc4 {[%clk 0:13:30]}  Rd3 {[%clk 0:44:45]} 27. Nb2 {[%clk 0:09:46]}  Rd7 {[%clk 0:40:19]}
28. h3 {[%clk 0:07:53]}  h5 {[%clk 0:40:13]} 29. Red1 {[%clk 0:05:38]}  Rcd8 {[%clk 0:37:10]} 30. Rxd7 {[%clk 0:05:42]}  Rxd7 {[%clk 0:37:36]}
31. f3 {[%clk 0:02:25]}  exf3 {[%clk 0:31:01]} 32. gxf3 {[%clk 0:02:50]}  g4 {[%clk 0:26:59]} 33. hxg4 {[%clk 0:02:42]}  hxg4 {[%clk 0:27:23]}
34. fxg4 {[%clk 0:02:38]}  fxg4 {[%clk 0:27:47]} 35. e4 {[%clk 0:02:32]}  Bg5 {[%clk 0:25:56]} 36. Rc2 {[%clk 0:02:32]}  Bf4 {[%clk 0:21:28]}
37. Be1 {[%clk 0:02:18]}  Bc6 {[%clk 0:17:18]} 38. Re2 {[%clk 0:02:23]}  Bb5 {[%clk 0:05:30]} 39. Rc2 {[%clk 0:02:18]}  Bc6 {[%clk 0:02:13]}
40. Re2 {[%clk 0:02:44]}  Bb5 {[%clk 0:01:34]} 1/2-1/2

[Event "2026 European Womens Championship"]
[Site "Batumi, GE"]
[Date "2026.05.29"]
[Round "5"]
[White "Skarbarchuk, Tetyana"]
[Black "Shuqja, Klean"]
[Result "1-0"]
[Board "96"]
[TimeControl "5400+30"]
[WhiteFideId "14184494"]
[BlackFideId "4701585"]
[WhiteElo "2236"]
[BlackElo "2092"]
[BlackTitle "WFM"]
[WhiteClock "0:26:09"]
[BlackClock "0:00:33"]
[Variant "Standard"]

1. d4 {[%clk 1:30:56]}  Nf6 {[%clk 1:26:42]} 2. c4 {[%clk 1:30:38]}  e6 {[%clk 1:27:09]} 3. Nc3 {[%clk 1:30:34]}  d5 {[%clk 1:27:33]}
4. cxd5 {[%clk 1:29:56]}  exd5 {[%clk 1:27:54]} 5. Bg5 {[%clk 1:30:18]}  Be7 {[%clk 1:28:08]} 6. e3 {[%clk 1:29:58]}  c6 {[%clk 1:27:57]}
7. Bd3 {[%clk 1:29:59]}  h6 {[%clk 1:26:29]} 8. Bh4 {[%clk 1:29:57]}  Ne4 {[%clk 1:16:54]} 9. Bxe7 {[%clk 1:16:15]}  Nxc3 {[%clk 1:16:34]}
10. bxc3 {[%clk 1:13:37]}  Qxe7 {[%clk 1:16:58]} 11. Ne2 {[%clk 1:11:24]}  Nd7 {[%clk 1:12:19]} 12. O-O {[%clk 1:09:46]}  O-O {[%clk 1:12:18]}
13. Qc2 {[%clk 1:08:45]}  Nf6 {[%clk 1:10:24]} 14. Rfe1 {[%clk 1:05:58]}  b6 {[%clk 1:05:27]} 15. Ng3 {[%clk 1:02:52]}  Qc7 {[%clk 1:00:08]}
16. f3 {[%clk 0:58:25]}  c5 {[%clk 0:56:51]} 17. Qf2 {[%clk 0:52:55]}  Rd8 {[%clk 0:46:47]} 18. Rad1 {[%clk 0:50:56]}  Be6 {[%clk 0:38:01]}
19. h3 {[%clk 0:48:29]}  cxd4 {[%clk 0:33:05]} 20. cxd4 {[%clk 0:48:48]}  Qc3 {[%clk 0:32:29]} 21. Bb1 {[%clk 0:46:32]}  b5 {[%clk 0:22:28]}
22. e4 {[%clk 0:41:27]}  dxe4 {[%clk 0:15:45]} 23. fxe4 {[%clk 0:39:06]}  b4 {[%clk 0:12:52]} 24. Rd3 {[%clk 0:33:23]}  Qc7 {[%clk 0:09:39]}
25. d5 {[%clk 0:27:09]}  Bc8 {[%clk 0:09:56]} 26. d6 {[%clk 0:27:04]}  Qb6 {[%clk 0:08:54]} 27. Qxb6 {[%clk 0:22:48]}  axb6 {[%clk 0:09:23]}
28. Rd4 {[%clk 0:23:08]}  Ra3 {[%clk 0:07:24]} 29. Kh2 {[%clk 0:19:19]}  b3 {[%clk 0:06:01]} 30. axb3 {[%clk 0:18:47]}  Rxb3 {[%clk 0:06:20]}
31. e5 {[%clk 0:18:52]}  Nd7 {[%clk 0:05:53]} 32. e6 {[%clk 0:14:29]}  fxe6 {[%clk 0:05:36]} 33. Ba2 {[%clk 0:14:55]}  Rb2 {[%clk 0:03:13]}
34. Bxe6+ {[%clk 0:15:18]}  Kf8 {[%clk 0:00:54]} 35. Nh5 {[%clk 0:09:47]}  Nf6 {[%clk 0:00:36]} 36. Nxf6 {[%clk 0:09:16]}  Bxe6 {[%clk 0:00:33]}
37. Rxe6 {[%clk 0:09:04]}  Kf7 {[%clk 0:00:40]} 38. Re7+ {[%clk 0:09:09]}  Kxf6 {[%clk 0:01:04]} 39. Rf4+ {[%clk 0:08:52]}  Kg5 {[%clk 0:00:39]}
40. Rf3 {[%clk 0:06:46]}  Kg6 {[%clk 0:00:32]} 41. d7 {[%clk 0:03:49]}  Rd2 {[%clk 0:27:30]} 42. Rg3+ {[%clk 0:33:27]}  Kf5 {[%clk 0:25:04]}
43. Rgxg7 {[%clk 0:33:17]}  b5 {[%clk 0:23:23]} 44. h4 {[%clk 0:31:01]}  b4 {[%clk 0:20:20]} 45. h5 {[%clk 0:30:24]}  b3 {[%clk 0:11:18]}
46. Kh3 {[%clk 0:29:07]}  Rd5 {[%clk 0:03:00]} 47. Rgf7+ {[%clk 0:28:17]}  Kg5 {[%clk 0:03:11]} 48. Re8 {[%clk 0:28:36]}  b2 {[%clk 0:00:39]}
49. Rxd8 {[%clk 0:29:00]}  Rd3+ {[%clk 0:00:33]} 50. Kh2 {[%clk 0:26:09]}  b1=Q {[%clk 0:00:00]} 1-0

[Event "2026 European Womens Championship"]
[Site "Batumi, GE"]
[Date "2026.05.29"]
[Round "5"]
[White "Kubicka, Anna"]
[Black "Tashkinova, Sofiia"]
[Result "0-1"]
[Board "97"]
[TimeControl "5400+30"]
[WhiteFideId "1152254"]
[BlackFideId "14188309"]
[WhiteElo "2226"]
[BlackElo "2085"]
[WhiteTitle "WIM"]
[BlackTitle "WFM"]
[WhiteClock "0:00:51"]
[BlackClock "0:13:01"]
[Variant "Standard"]

1. e4 {[%clk 1:30:38]}  c5 {[%clk 1:30:54]} 2. Nf3 {[%clk 1:30:50]}  Nc6 {[%clk 1:31:16]} 3. Bb5 {[%clk 1:31:10]}  g6 {[%clk 1:31:16]}
4. Bxc6 {[%clk 1:31:35]}  dxc6 {[%clk 1:30:46]} 5. d3 {[%clk 1:31:55]}  Bg7 {[%clk 1:31:00]} 6. O-O {[%clk 1:32:05]}  Qc7 {[%clk 1:30:29]}
7. a4 {[%clk 1:32:07]}  a5 {[%clk 1:27:45]} 8. h3 {[%clk 1:31:49]}  h6 {[%clk 1:27:06]} 9. Nc3 {[%clk 1:26:22]}  g5 {[%clk 1:26:42]}
10. d4 {[%clk 1:15:53]}  g4 {[%clk 1:23:37]} 11. hxg4 {[%clk 1:14:20]}  Bxg4 {[%clk 1:23:18]} 12. dxc5 {[%clk 1:06:24]}  h5 {[%clk 1:21:42]}
13. Ra3 {[%clk 0:49:52]}  Rd8 {[%clk 1:15:04]} 14. Qe2 {[%clk 0:44:48]}  Nh6 {[%clk 1:13:44]} 15. Nd1 {[%clk 0:38:00]}  f5 {[%clk 1:07:55]}
16. Rd3 {[%clk 0:25:52]}  Nf7 {[%clk 0:48:30]} 17. Rxd8+ {[%clk 0:20:24]}  Qxd8 {[%clk 0:48:29]} 18. Bf4 {[%clk 0:18:48]}  e5 {[%clk 0:43:26]}
19. exf5 {[%clk 0:12:56]}  Bxf3 {[%clk 0:39:05]} 20. gxf3 {[%clk 0:10:54]}  Qh4 {[%clk 0:29:58]} 21. Bg3 {[%clk 0:11:01]}  Qh3 {[%clk 0:29:48]}
22. f4 {[%clk 0:05:37]}  h4 {[%clk 0:26:21]} 23. Bh2 {[%clk 0:04:55]}  Bh6 {[%clk 0:26:10]} 24. f3 {[%clk 0:04:46]}  Bxf4 {[%clk 0:23:09]}
25. Rf2 {[%clk 0:03:54]}  Rg8+ {[%clk 0:21:06]} 26. Kh1 {[%clk 0:04:18]}  Nh6 {[%clk 0:15:49]} 27. Ne3 {[%clk 0:03:28]}  Nxf5 {[%clk 0:14:12]}
28. Nxf5 {[%clk 0:03:29]}  Qxf5 {[%clk 0:14:36]} 29. Bxf4 {[%clk 0:01:26]}  Qxf4 {[%clk 0:14:54]} 30. Rg2 {[%clk 0:01:26]}  Rxg2 {[%clk 0:05:23]}
31. Qxg2 {[%clk 0:01:43]}  Qc1+ {[%clk 0:05:35]} 32. Kh2 {[%clk 0:01:53]}  Qxb2 {[%clk 0:05:54]} 33. Qg6+ {[%clk 0:02:03]}  Ke7 {[%clk 0:04:22]}
34. Qg7+ {[%clk 0:01:12]}  Ke6 {[%clk 0:04:09]} 35. Qg8+ {[%clk 0:01:33]}  Kf6 {[%clk 0:03:41]} 36. Qh8+ {[%clk 0:00:42]}  Kf5 {[%clk 0:03:30]}
37. Qh7+ {[%clk 0:00:40]}  Kg5 {[%clk 0:02:28]} 38. Qg7+ {[%clk 0:00:40]}  Kf4 {[%clk 0:01:45]} 39. Qg4+ {[%clk 0:00:46]}  Ke3 {[%clk 0:02:10]}
40. Qe4+ {[%clk 0:00:38]}  Kf2 {[%clk 0:01:21]} 41. Kh3 {[%clk 0:21:08]}  Qb4 {[%clk 0:29:26]} 42. c4 {[%clk 0:11:17]}  Qxc5 {[%clk 0:22:19]}
43. Qc2+ {[%clk 0:02:48]}  Ke3 {[%clk 0:21:28]} 44. Qe4+ {[%clk 0:02:20]}  Kd2 {[%clk 0:21:31]} 45. Kxh4 {[%clk 0:01:20]}  Qe3 {[%clk 0:12:30]}
46. Qf5 {[%clk 0:00:38]}  Kc3 {[%clk 0:11:28]} 47. Kg4 {[%clk 0:00:33]}  Kxc4 {[%clk 0:09:53]} 48. Qf7+ {[%clk 0:00:46]}  Kc3 {[%clk 0:09:42]}
49. Qxb7 {[%clk 0:01:06]}  Qf4+ {[%clk 0:10:03]} 50. Kh3 {[%clk 0:01:29]}  Qxf3 {[%clk 0:10:26]} 51. Kh2 {[%clk 0:01:58]}  Qf4+ {[%clk 0:10:18]}
52. Kh3 {[%clk 0:01:42]}  Qxa4 {[%clk 0:10:37]} 53. Qb6 {[%clk 0:02:07]}  Qb5 {[%clk 0:10:54]} 54. Qf2 {[%clk 0:01:48]}  Qd3 {[%clk 0:11:18]}
55. Kh2 {[%clk 0:02:11]}  Qd2 {[%clk 0:11:42]} 56. Kh1 {[%clk 0:02:39]}  Qd5+ {[%clk 0:11:49]} 57. Kh2 {[%clk 0:02:56]}  a4 {[%clk 0:12:13]}
58. Qa7 {[%clk 0:02:14]}  Qd4 {[%clk 0:12:14]} 59. Qa5+ {[%clk 0:01:43]}  Kb2 {[%clk 0:12:34]} 60. Qc7 {[%clk 0:01:47]}  c5 {[%clk 0:12:41]}
61. Qb7+ {[%clk 0:01:37]}  Ka2 {[%clk 0:13:03]} 62. Qf7+ {[%clk 0:01:25]}  c4 {[%clk 0:13:27]} 63. Kh1 {[%clk 0:01:10]}  a3 {[%clk 0:12:37]}
64. Qf2+ {[%clk 0:01:31]}  Kb3 {[%clk 0:12:55]} 65. Qf3+ {[%clk 0:01:41]}  Qc3 {[%clk 0:12:57]} 66. Qb7+ {[%clk 0:01:45]}  Ka2 {[%clk 0:13:06]}
67. Qg2+ {[%clk 0:01:43]}  Kb1 {[%clk 0:12:29]} 68. Qe4+ {[%clk 0:01:35]}  Qd3 {[%clk 0:12:49]} 69. Qe1+ {[%clk 0:01:17]}  Kc2 {[%clk 0:12:55]}
70. Qf2+ {[%clk 0:00:35]}  Kc1 {[%clk 0:13:14]} 71. Qa7 {[%clk 0:00:33]}  e4 {[%clk 0:13:27]} 72. Qa6 {[%clk 0:00:36]}  e3 {[%clk 0:13:33]}
73. Kg1 {[%clk 0:00:35]}  a2 {[%clk 0:12:52]} 74. Kg2 {[%clk 0:00:37]}  Qc3 {[%clk 0:13:15]} 75. Kh1 {[%clk 0:00:34]}  a1=Q {[%clk 0:12:16]}
76. Qe6 {[%clk 0:00:38]}  Qa8 {[%clk 0:12:13]} 77. Kh2 {[%clk 0:00:43]}  Qd2+ {[%clk 0:12:34]} 78. Kg3 {[%clk 0:00:57]}  Qaa2 {[%clk 0:12:34]}
79. Qe4 {[%clk 0:00:36]}  e2 {[%clk 0:12:43]} 80. Kf3 {[%clk 0:00:34]}  e1=N+ {[%clk 0:12:37]} 81. Kg3 {[%clk 0:00:51]}  Qd3+ {[%clk 0:13:01]} 0-1

[Event "2026 European Womens Championship"]
[Site "Batumi, GE"]
[Date "2026.05.29"]
[Round "5"]
[White "Kochavi, Dana"]
[Black "Venskaya, Nika"]
[Result "0-1"]
[Board "98"]
[TimeControl "5400+30"]
[WhiteFideId "2837137"]
[BlackFideId "13523503"]
[WhiteElo "2209"]
[BlackElo "1937"]
[WhiteTitle "FM"]
[BlackTitle "WCM"]
[WhiteClock "0:50:31"]
[BlackClock "0:02:00"]
[Variant "Standard"]

1. e4 {[%clk 1:30:59]}  c5 {[%clk 1:30:52]} 2. Nf3 {[%clk 1:31:24]}  d6 {[%clk 1:31:17]} 3. d4 {[%clk 1:31:52]}  cxd4 {[%clk 1:31:43]}
4. Nxd4 {[%clk 1:32:19]}  Nf6 {[%clk 1:32:08]} 5. Nc3 {[%clk 1:32:42]}  g6 {[%clk 1:32:35]} 6. f3 {[%clk 1:33:08]}  Bg7 {[%clk 1:33:01]}
7. Be3 {[%clk 1:33:35]}  O-O {[%clk 1:33:24]} 8. Qd2 {[%clk 1:34:03]}  Nc6 {[%clk 1:33:49]} 9. O-O-O {[%clk 1:34:28]}  d5 {[%clk 1:34:15]}
10. Nxc6 {[%clk 1:34:54]}  bxc6 {[%clk 1:34:40]} 11. Bh6 {[%clk 1:35:21]}  Bxh6 {[%clk 1:34:49]} 12. Qxh6 {[%clk 1:35:46]}  e5 {[%clk 1:35:15]}
13. Qg5 {[%clk 1:36:06]}  Qd6 {[%clk 1:34:25]} 14. h4 {[%clk 1:36:18]}  d4 {[%clk 1:18:36]} 15. h5 {[%clk 1:31:34]}  Ne8 {[%clk 1:11:28]}
16. Qh6 {[%clk 1:19:47]}  gxh5 {[%clk 0:57:13]} 17. Qxh5 {[%clk 1:19:54]}  Qg6 {[%clk 0:57:36]} 18. Na4 {[%clk 1:20:09]}  Qxh5 {[%clk 0:57:12]}
19. Rxh5 {[%clk 1:20:34]}  f6 {[%clk 0:57:39]} 20. Bc4+ {[%clk 1:20:59]}  Kg7 {[%clk 0:57:45]} 21. Rdh1 {[%clk 1:20:53]}  Rh8 {[%clk 0:58:10]}
22. Rh6 {[%clk 1:19:51]}  Rb8 {[%clk 0:47:20]} 23. g4 {[%clk 1:14:36]}  Rb4 {[%clk 0:38:39]} 24. Bb3 {[%clk 1:14:56]}  Rb5 {[%clk 0:39:05]}
25. a3 {[%clk 1:12:45]}  c5 {[%clk 0:38:18]} 26. Bd5 {[%clk 1:09:26]}  Bd7 {[%clk 0:37:58]} 27. b3 {[%clk 1:08:35]}  Nc7 {[%clk 0:37:22]}
28. Bc4 {[%clk 1:05:00]}  Ra5 {[%clk 0:37:23]} 29. Nb2 {[%clk 1:05:24]}  Rxa3 {[%clk 0:34:49]} 30. Kb1 {[%clk 1:05:49]}  Bb5 {[%clk 0:33:58]}
31. R6h5 {[%clk 0:59:28]}  Be8 {[%clk 0:24:43]} 32. Rh6 {[%clk 0:57:35]}  Bb5 {[%clk 0:25:08]} 33. Bf7 {[%clk 0:49:07]}  Be2 {[%clk 0:16:13]}
34. Bc4 {[%clk 0:47:53]}  Bxf3 {[%clk 0:13:04]} 35. R1h2 {[%clk 0:48:07]}  Bxe4 {[%clk 0:08:12]} 36. Na4 {[%clk 0:48:29]}  Rb8 {[%clk 0:08:03]}
37. Nxc5 {[%clk 0:48:52]}  Bg6 {[%clk 0:08:28]} 38. Bd3 {[%clk 0:47:29]}  Bxd3 {[%clk 0:06:17]} 39. cxd3 {[%clk 0:45:53]}  Rh8 {[%clk 0:06:39]}
40. g5 {[%clk 0:44:54]}  fxg5 {[%clk 0:01:20]} 41. Rc6 {[%clk 0:45:17]}  Nd5 {[%clk 0:29:41]} 42. Ne6+ {[%clk 1:14:40]}  Kf7 {[%clk 0:29:25]}
43. Nxg5+ {[%clk 1:15:04]}  Ke7 {[%clk 0:29:50]} 44. Kb2 {[%clk 1:15:12]}  Ra2+ {[%clk 0:29:13]} 45. Kxa2 {[%clk 1:15:37]}  Nb4+ {[%clk 0:29:40]}
46. Ka3 {[%clk 1:16:02]}  Nxc6 {[%clk 0:30:07]} 47. Rh6 {[%clk 1:16:21]}  Nd8 {[%clk 0:27:04]} 48. Ne4 {[%clk 1:14:21]}  Nf7 {[%clk 0:22:45]}
49. Ra6 {[%clk 1:14:45]}  Ra8 {[%clk 0:22:01]} 50. Nf6 {[%clk 1:15:05]}  h6 {[%clk 0:20:31]} 51. Nd5+ {[%clk 1:15:28]}  Kf8 {[%clk 0:20:51]}
52. Nc7 {[%clk 1:13:59]}  Rc8 {[%clk 0:21:12]} 53. Rxa7 {[%clk 1:14:24]}  h5 {[%clk 0:21:16]} 54. b4 {[%clk 1:13:04]}  h4 {[%clk 0:19:31]}
55. b5 {[%clk 1:05:11]}  Rb8 {[%clk 0:18:01]} 56. Kb4 {[%clk 1:05:20]}  h3 {[%clk 0:17:15]} 57. Ra2 {[%clk 1:03:40]}  Ke7 {[%clk 0:13:43]}
58. Kc5 {[%clk 1:03:06]}  Ng5 {[%clk 0:10:53]} 59. Nd5+ {[%clk 1:00:03]}  Ke6 {[%clk 0:09:40]} 60. Ra6+ {[%clk 1:00:11]}  Kf5 {[%clk 0:09:01]}
61. Rh6 {[%clk 1:00:29]}  Kg4 {[%clk 0:07:10]} 62. b6 {[%clk 1:00:17]}  Kg3 {[%clk 0:04:56]} 63. Nf6 {[%clk 0:58:10]}  h2 {[%clk 0:04:43]}
64. Ng4 {[%clk 0:51:45]}  Kxg4 {[%clk 0:04:07]} 65. Rxh2 {[%clk 0:52:10]}  Ne6+ {[%clk 0:02:24]} 66. Kc6 {[%clk 0:52:17]}  Nf4 {[%clk 0:02:25]}
67. Kc7 {[%clk 0:51:00]}  Re8 {[%clk 0:02:27]} 68. Kd7 {[%clk 0:50:14]}  Rf8 {[%clk 0:01:48]} 69. Rd2 {[%clk 0:49:26]}  Kf3 {[%clk 0:01:29]}
70. Kd6 {[%clk 0:48:31]}  Ke3 {[%clk 0:01:23]} 71. Ra2 {[%clk 0:48:56]}  Nxd3 {[%clk 0:00:41]} 72. b7 {[%clk 0:48:56]}  Rb8 {[%clk 0:01:03]}
73. Kc7 {[%clk 0:49:20]}  Rxb7+ {[%clk 0:01:22]} 74. Kxb7 {[%clk 0:49:43]}  Nb4 {[%clk 0:00:59]} 75. Rb2 {[%clk 0:50:10]}  Nd3 {[%clk 0:01:07]}
76. Ra2 {[%clk 0:50:37]}  e4 {[%clk 0:01:10]} 77. Kb6 {[%clk 0:50:55]}  Nf4 {[%clk 0:01:24]} 78. Kc5 {[%clk 0:50:37]}  d3 {[%clk 0:01:39]}
79. Ra1 {[%clk 0:50:52]}  d2 {[%clk 0:01:47]} 80. Kc4 {[%clk 0:50:31]}  Nd3 {[%clk 0:02:00]} 0-1

[Event "2026 European Womens Championship"]
[Site "Batumi, GE"]
[Date "2026.05.29"]
[Round "5"]
[White "Buyuk, Ecrin Efsa"]
[Black "Siekanska, Maria"]
[Result "0-1"]
[Board "99"]
[TimeControl "5400+30"]
[WhiteFideId "44505175"]
[BlackFideId "21852650"]
[WhiteElo "2076"]
[BlackElo "2203"]
[WhiteTitle "WFM"]
[BlackTitle "WIM"]
[WhiteClock "0:01:22"]
[BlackClock "0:15:23"]
[Variant "Standard"]

1. e4 {[%clk 1:30:56]}  c5 {[%clk 1:21:15]} 2. d3 {[%clk 1:31:15]}  Nc6 {[%clk 1:20:52]} 3. g3 {[%clk 1:31:29]}  g6 {[%clk 1:21:12]}
4. Bg2 {[%clk 1:31:42]}  Bg7 {[%clk 1:21:33]} 5. Nd2 {[%clk 1:31:52]}  d6 {[%clk 1:21:19]} 6. f4 {[%clk 1:31:47]}  e6 {[%clk 1:19:37]}
7. Nh3 {[%clk 1:29:37]}  Nge7 {[%clk 1:19:19]} 8. a4 {[%clk 1:29:41]}  a6 {[%clk 1:17:24]} 9. c3 {[%clk 1:23:47]}  Rb8 {[%clk 1:15:11]}
10. Nf3 {[%clk 1:17:15]}  b5 {[%clk 1:06:52]} 11. axb5 {[%clk 1:14:46]}  axb5 {[%clk 1:07:02]} 12. O-O {[%clk 1:14:15]}  b4 {[%clk 1:05:10]}
13. Bd2 {[%clk 1:10:57]}  O-O {[%clk 1:03:49]} 14. Nf2 {[%clk 1:10:01]}  Qb6 {[%clk 1:02:46]} 15. g4 {[%clk 0:57:43]}  f5 {[%clk 0:58:44]}
16. gxf5 {[%clk 0:36:08]}  exf5 {[%clk 0:57:48]} 17. Qb3+ {[%clk 0:32:50]}  Kh8 {[%clk 0:58:08]} 18. Ng5 {[%clk 0:27:04]}  bxc3 {[%clk 0:53:23]}
19. Nf7+ {[%clk 0:19:36]}  Rxf7 {[%clk 0:52:51]} 20. Qxf7 {[%clk 0:20:04]}  cxd2 {[%clk 0:51:16]} 21. e5 {[%clk 0:19:34]}  d5 {[%clk 0:30:08]}
22. Qe8+ {[%clk 0:12:32]}  Ng8 {[%clk 0:30:29]} 23. Nh3 {[%clk 0:12:55]}  Ba6 {[%clk 0:21:31]} 24. Ng5 {[%clk 0:12:49]}  Bh6 {[%clk 0:20:41]}
25. Nf7+ {[%clk 0:05:37]}  Kg7 {[%clk 0:21:05]} 26. Qd7 {[%clk 0:06:03]}  Bc8 {[%clk 0:18:51]} 27. Qe8 {[%clk 0:02:57]}  Ba6 {[%clk 0:17:20]}
28. Qd7 {[%clk 0:02:07]}  Nge7 {[%clk 0:15:04]} 29. Bxd5 {[%clk 0:01:39]}  Bc8 {[%clk 0:14:13]} 30. Qd6 {[%clk 0:01:36]}  Nxd5 {[%clk 0:14:21]}
31. Nxh6 {[%clk 0:01:02]}  Nce7 {[%clk 0:14:06]} 32. Nf7 {[%clk 0:00:51]}  Kxf7 {[%clk 0:13:57]} 33. e6+ {[%clk 0:00:52]}  Bxe6 {[%clk 0:14:20]}
34. Qe5 {[%clk 0:01:20]}  c4+ {[%clk 0:14:36]} 35. d4 {[%clk 0:00:57]}  Nc6 {[%clk 0:14:55]} 36. Qd6 {[%clk 0:00:57]}  Rd8 {[%clk 0:14:50]}
37. Qa3 {[%clk 0:00:56]}  Qxd4+ {[%clk 0:15:06]} 38. Kh1 {[%clk 0:01:22]}  Ne3 {[%clk 0:15:23]} 0-1

[Event "2026 European Womens Championship"]
[Site "Batumi, GE"]
[Date "2026.05.29"]
[Round "5"]
[White "Radikovic, Anamarija"]
[Black "Rodriguez Redondo, Adhara"]
[Result "1-0"]
[Board "100"]
[TimeControl "5400+30"]
[WhiteFideId "14546264"]
[BlackFideId "32065698"]
[WhiteElo "1974"]
[BlackElo "2200"]
[WhiteTitle "WFM"]
[BlackTitle "WFM"]
[WhiteClock "0:12:55"]
[BlackClock "0:08:17"]
[Variant "Standard"]

1. e4 {[%clk 1:30:58]}  e5 {[%clk 1:30:56]} 2. Nf3 {[%clk 1:31:23]}  Nc6 {[%clk 1:31:22]} 3. Bb5 {[%clk 1:31:49]}  a6 {[%clk 1:31:47]}
4. Ba4 {[%clk 1:32:15]}  d6 {[%clk 1:32:12]} 5. c3 {[%clk 1:31:28]}  Bd7 {[%clk 1:32:16]} 6. d4 {[%clk 1:30:34]}  g6 {[%clk 1:31:33]}
7. Bg5 {[%clk 1:29:33]}  f6 {[%clk 1:29:39]} 8. Be3 {[%clk 1:29:25]}  Bg7 {[%clk 1:28:13]} 9. a3 {[%clk 1:22:44]}  Nh6 {[%clk 1:25:04]}
10. Bb3 {[%clk 1:11:44]}  Qe7 {[%clk 1:23:54]} 11. d5 {[%clk 1:10:31]}  Nd8 {[%clk 1:21:22]} 12. Qc1 {[%clk 1:02:44]}  Ndf7 {[%clk 1:15:59]}
13. c4 {[%clk 0:59:00]}  b6 {[%clk 1:15:43]} 14. Nc3 {[%clk 0:58:56]}  O-O {[%clk 1:10:12]} 15. h4 {[%clk 0:50:39]}  Ng4 {[%clk 1:01:33]}
16. Bd2 {[%clk 0:49:36]}  h5 {[%clk 0:55:12]} 17. O-O {[%clk 0:44:26]}  Bh6 {[%clk 0:51:10]} 18. Ba4 {[%clk 0:38:11]}  Bc8 {[%clk 0:44:23]}
19. b4 {[%clk 0:36:44]}  Kg7 {[%clk 0:39:59]} 20. Bc6 {[%clk 0:36:09]}  Rb8 {[%clk 0:39:14]} 21. a4 {[%clk 0:36:14]}  Bxd2 {[%clk 0:36:43]}
22. Qxd2 {[%clk 0:36:28]}  Ngh6 {[%clk 0:34:17]} 23. Rfb1 {[%clk 0:30:20]}  g5 {[%clk 0:32:45]} 24. a5 {[%clk 0:26:17]}  g4 {[%clk 0:31:12]}
25. Ne1 {[%clk 0:26:38]}  f5 {[%clk 0:28:55]} 26. g3 {[%clk 0:27:03]}  f4 {[%clk 0:26:00]} 27. b5 {[%clk 0:23:05]}  bxa5 {[%clk 0:24:34]}
28. Rxa5 {[%clk 0:23:09]}  axb5 {[%clk 0:23:57]} 29. Rbxb5 {[%clk 0:21:33]}  Rxb5 {[%clk 0:20:18]} 30. Nxb5 {[%clk 0:21:57]}  Nh8 {[%clk 0:13:28]}
31. Ra7 {[%clk 0:20:18]}  Kg8 {[%clk 0:13:26]} 32. Rxc7 {[%clk 0:19:30]}  Qf6 {[%clk 0:13:50]} 33. gxf4 {[%clk 0:18:39]}  exf4 {[%clk 0:12:30]}
34. Qd4 {[%clk 0:16:53]}  Qg6 {[%clk 0:12:41]} 35. Nxd6 {[%clk 0:16:42]}  g3 {[%clk 0:12:09]} 36. f3 {[%clk 0:16:51]}  Bh3 {[%clk 0:11:51]}
37. Ne8 {[%clk 0:14:55]}  Rf7 {[%clk 0:11:29]} 38. Rxf7 {[%clk 0:14:34]}  N8xf7 {[%clk 0:10:53]} 39. Qf6 {[%clk 0:12:50]}  Qxf6 {[%clk 0:10:42]}
40. Nxf6+ {[%clk 0:13:14]}  Kf8 {[%clk 0:10:23]} 41. Nxh5 {[%clk 0:13:34]}  Ne5 {[%clk 0:09:07]} 42. Nxf4 {[%clk 0:13:48]}  Bc8 {[%clk 0:08:55]}
43. Bb5 {[%clk 0:14:03]}  Ke7 {[%clk 0:07:46]} 44. c5 {[%clk 0:14:09]}  Nhf7 {[%clk 0:08:02]} 45. Kg2 {[%clk 0:14:24]}  Bd7 {[%clk 0:07:59]}
46. Bxd7 {[%clk 0:13:27]}  Nxd7 {[%clk 0:08:05]} 47. Ned3 {[%clk 0:13:20]}  Kf6 {[%clk 0:08:01]} 48. Kxg3 {[%clk 0:13:23]}  Nfe5 {[%clk 0:08:17]}
49. c6 {[%clk 0:12:55]} 1-0